fUSD/lending_fUSD_20260111
["ID","MTS","AMOUNT","RATE_DAILY","PERIOD"]
[401361139,1768155044155,-1001.71787449,0.00017621,2]
[401361141,1768155044164,-501.45467854,0.00017621,2]
[401361143,1768155044174,-1000.0,0.00017621,2]
[401361145,1768155044183,-1000.0,0.00017621,2]
[401361147,1768155044194,-1000.0,0.00017621,2]
[401361149,1768155044204,-1000.0,0.00017634,2]
[401361151,1768155044214,-1419.205,0.00017635,2]
[401361153,1768155044224,-637.448,0.00017635,2]
[401361155,1768155044234,-501.77065485,0.00017636,2]
[401361157,1768155044249,-150.0,0.0001764,2]
[401361159,1768155044260,-150.0,0.0001764,2]
[401361161,1768155044270,-150.0,0.0001764,2]
[401361163,1768155044280,-3755.81126593,0.0001764,2]
[401361165,1768155044291,-727.48031177,0.00017644,2]
[401361167,1768155044300,-340.11,0.00017648,2]
[401361169,1768155044310,-1101.0,0.00017649,2]
[401361171,1768155044322,-4225.8,0.00017653,2]
[401361174,1768155044333,-501.77065485,0.00017655,2]
[401361176,1768155044342,-1000.0,0.0001767,2]
[401361178,1768155044352,-501.77065485,0.00017673,2]
[401361180,1768155044362,-1202.14,0.0001768,2]
[401361182,1768155044372,-916.599,0.0001768,2]
[401361183,1768155044381,-501.77065485,0.00017691,2]
[401361186,1768155044391,-727.48031177,0.00017699,2]
[401361188,1768155044401,-150.0,0.000177,2]
[401361189,1768155044410,-1000.0,0.000177,2]
[401361193,1768155044430,-21000.0,0.000177,6]
[401361195,1768155044441,-4820.0,0.00017701,2]
[401361197,1768155044450,-2437.0,0.00017701,2]
[401361199,1768155044461,-566.0,0.00017701,2]
[401361201,1768155044471,-4225.8,0.00017703,2]
[401361203,1768155044481,-276.55425834,0.00017708,2]
[401361205,1768155044490,-501.77065485,0.00017709,2]
[401361207,1768155044500,-150.0,0.00017723,2]
[401361209,1768155044510,-501.77065485,0.00017727,2]
[401361211,1768155044519,-150.0,0.00017743,2]
[401361213,1768155044529,-150.0,0.00017743,2]
[401361215,1768155044539,-1757.0,0.00017745,2]
[401361216,1768155044548,-501.77065485,0.00017745,2]
[401361217,1768155044557,-4225.8,0.00017752,2]
[401361218,1768155044567,-501.77065485,0.00017764,2]
[401361219,1768155044576,-150.0,0.00017775,2]
[401361220,1768155044586,-1682.2,0.00017775,2]
[401361221,1768155044595,-727.48031177,0.00017781,2]
[401361222,1768155044605,-501.77065485,0.00017782,2]
[401361223,1768155044616,-215.59,0.00017793,2]
[401361225,1768155044625,-501.77065485,0.000178,2]
[401361227,1768155044634,-1000.0,0.000178,2]
[401361229,1768155044648,-21000.0,0.000178,6]
[401361231,1768155044658,-4225.8,0.00017802,2]
[401361233,1768155044668,-276.55425834,0.00017804,2]
[401361235,1768155044677,-1000.0,0.0001781,2]
[401361237,1768155044687,-150.0,0.0001781,2]
[401361239,1768155044697,-2351.0,0.00017814,2]
[401361241,1768155044707,-501.77065485,0.00017818,2]
[401361243,1768155044716,-150.0,0.0001782,2]
[401361245,1768155044727,-150.0,0.0001782,2]
[401361247,1768155044736,-276.91,0.00017828,2]
[401361250,1768155044747,-2201.92484839,0.0001783,2]
[401361252,1768155044757,-215.58466927,0.00017833,2]
[401361254,1768155044767,-727.48031177,0.00017836,2]
[401361256,1768155044783,-501.77065485,0.00017836,2]
[401361258,1768155044796,-4225.8,0.00017851,2]
[401361260,1768155044806,-501.77065485,0.00017855,2]
[401361262,1768155044816,-200.0,0.00017855,2]
[401361264,1768155044826,-200.0,0.00017856,2]
[401361266,1768155044836,-200.0,0.00017856,2]
[401361269,1768155044846,-150.0,0.00017862,2]
[401361271,1768155044855,-500.0,0.00017863,2]
[401361272,1768155044865,-25000.0,0.00017865,3]
[401361275,1768155044876,-501.77065485,0.00017873,2]
[401361277,1768155044886,-25000.0,0.00017874,3]
[401361279,1768155044895,-1757.0,0.0001788,2]
[401361281,1768155044905,-25000.0,0.00017882,3]
[401361283,1768155044914,-587.0,0.0001789,2]
[401361285,1768155044924,-501.77065485,0.00017891,2]
[401361287,1768155044934,-25000.0,0.00017891,3]
[401361289,1768155044943,-1089.8409,0.000179,2]
[401361291,1768155044953,-276.55425834,0.000179,2]
[401361293,1768155044963,-10000.0,0.000179,2]
[401361295,1768155044972,-25000.0,0.000179,3]
[401361297,1768155044983,-990.42571281,0.000179,2]
[401361299,1768155044993,-1000.0,0.000179,2]
[401361301,1768155045003,-682.54404251,0.000179,2]
[401361303,1768155045013,-682.54404251,0.000179,2]
[401361306,1768155045025,-682.54404251,0.000179,2]
[401361308,1768155045035,-682.54404251,0.000179,2]
[401361310,1768155045045,-682.54404251,0.000179,2]
[401361311,1768155045054,-682.54404251,0.000179,2]
[401361314,1768155045064,-11139.92191035,0.000179,2]
[401361315,1768155045074,-21418.0,0.000179,6]
[401361318,1768155045084,-11947.28645791,0.000179,2]
[401361320,1768155045095,-791.45935323,0.000179,3]
[401361322,1768155045104,-294.7401385,0.000179,2]
[401361324,1768155045114,-3540.37913179,0.000179,2]
[401361326,1768155045124,-4225.8,0.00017901,2]
[401361328,1768155045133,-501.77065485,0.00017909,2]
[401361330,1768155045143,-150.0,0.00017914,2]
[401361332,1768155045158,-727.48031177,0.00017918,2]
[401361334,1768155045168,-219.0,0.00017922,2]
[401361336,1768155045178,-1757.0,0.00017924,2]
[401361338,1768155045188,-501.77065485,0.00017927,2]
[401361340,1768155045197,-501.77065485,0.00017945,2]
[401361342,1768155045207,-4225.8,0.0001795,2]
[401361345,1768155045218,-501.77065485,0.00017964,2]
[401361347,1768155045227,-727.48031177,0.00017973,2]
[401361349,1768155045237,-28016.0,0.00017973,2]
[401361351,1768155045251,-380.05360747,0.00017973,2]
[401361353,1768155045261,-500.0,0.00017973,2]
[401361355,1768155045271,-500.0,0.00017973,2]
[401361357,1768155045283,-500.0,0.00017973,2]
[401361359,1768155045294,-498.39272947,0.00017973,2]
[401361361,1768155045303,-500.0,0.00017973,2]
[401361363,1768155045314,-500.0,0.00017973,2]
[401361365,1768155045324,-500.0,0.00017973,2]
[401361367,1768155045334,-500.0,0.00017973,2]
[401361369,1768155045343,-500.0,0.00017973,2]
[401361371,1768155045353,-500.0,0.00017973,2]
[401361373,1768155045362,-500.0,0.00017973,2]
[401361375,1768155045372,-500.0,0.00017973,2]
[401361377,1768155045381,-500.0,0.00017973,2]
[401361379,1768155045391,-500.0,0.00017973,2]
[401361381,1768155045401,-500.0,0.00017973,2]
[401361383,1768155045410,-500.0,0.00017973,2]
[401361386,1768155045420,-500.0,0.00017973,2]
[401361388,1768155045430,-500.0,0.00017973,2]
[401361391,1768155045439,-500.0,0.00017973,2]
[401361393,1768155045449,-500.0,0.00017973,2]
[401361395,1768155045459,-500.0,0.00017973,2]
[401361397,1768155045468,-501.77065485,0.00017982,2]
[401361399,1768155045477,-500.0,0.00017982,2]
[401361401,1768155045486,-150.0,0.0001799,2]
[401361403,1768155045496,-1204.07094394,0.0001799,2]
[401361405,1768155045506,-1204.07094394,0.0001799,2]
[401361407,1768155045519,-500.0,0.00017993,2]
[401361409,1768155045528,-6478.23565516,0.00017994,2]
[401361411,1768155045538,-28294.07427315,0.00017994,4]
[401361414,1768155045548,-17782.0879103,0.00017994,2]
[401361415,1768155045559,-118129.9132686,0.00017994,2]
[401361417,1768155045570,-746.2956399,0.00017994,2]
[401361419,1768155045580,-166.9455236,0.00017999,2]
[401361421,1768155045590,-300.0,0.00017999,2]
[401361424,1768155045601,-500.0,0.00017999,2]
[401361426,1768155045611,-415.1732756,0.00017999,2]
[401361428,1768155045621,-300.0,0.00017999,2]
[401361430,1768155045632,-300.0,0.00017999,2]
[401361432,1768155045641,-300.0,0.00017999,2]
[401361434,1768155045651,-673.04563665,0.00017999,2]
[401361436,1768155045662,-150.0,0.00018,2]
[401361438,1768155045672,-150.0,0.00018,2]
[401361440,1768155045682,-150.0,0.00018,2]
[401361442,1768155045692,-501.77065485,0.00018,2]
[401361444,1768155045702,-150.0,0.00018,2]
[401361447,1768155045716,-150.0,0.00018,2]
[401361449,1768155045728,-150.4343184,0.00018,2]
[401361451,1768155045738,-150.00000001,0.00018,2]
[401361453,1768155045748,-150.0,0.00018,2]
[401361455,1768155045757,-150.37867968,0.00018,2]
[401361457,1768155045766,-178.176763,0.00018,2]
[401361459,1768155045776,-150.0,0.00018,2]
[401361461,1768155045787,-150.0,0.00018,2]
[401361463,1768155045796,-247.12115075,0.00018,2]
[401361465,1768155045806,-150.0,0.00018,2]
[401361467,1768155045816,-442546.09459778,0.00018,2]
[401361469,1768155045826,-1000.0,0.00018,2]
[401361472,1768155045836,-1000.0,0.00018,2]
[401361474,1768155045845,-1000.0,0.00018,2]
[401361476,1768155045855,-1000.0,0.00018,2]
[401361478,1768155045865,-1000.0,0.00018,2]
[401361480,1768155045874,-1000.0,0.00018,2]
[401361482,1768155045884,-1000.0,0.00018,2]
[401361484,1768155045893,-1000.0,0.00018,2]
[401361486,1768155045907,-1000.0,0.00018,2]
[401361488,1768155045916,-1000.0,0.00018,2]
[401361490,1768155045927,-1000.0,0.00018,2]
[401361492,1768155045936,-1000.0,0.00018,2]
[401361494,1768155045946,-1000.0,0.00018,2]
[401361496,1768155045955,-1000.0,0.00018,2]
[401361499,1768155045965,-1000.0,0.00018,2]
[401361500,1768155045975,-1000.0,0.00018,2]
[401361502,1768155045985,-1000.0,0.00018,2]
[401361504,1768155045994,-1000.0,0.00018,2]
[401361506,1768155046003,-1000.0,0.00018,2]
[401361508,1768155046012,-326.69839869,0.00018,2]
[401361510,1768155046022,-1530209.52342453,0.00018,2]
[401361517,1768155046074,-574.54270696,0.00018,2]
[401361739,1768155048301,-1852.42,0.00015178,2]
[401361742,1768155048311,-151.0,0.00015901,2]
[401361743,1768155048323,-151.0,0.00015901,2]
[401361745,1768155048333,-2.97325665,0.00017541,2]
[401361750,1768155048371,-330.2322093,0.00017541,2]
[401361753,1768155048381,-6555.0,0.00017701,2]
[401361754,1768155048391,-67691.65329028,0.00018,2]
[401362409,1768155063870,1600.0,0.00025693,120]
[401362410,1768155065619,79918.12173377,0.000202,30]
[401362413,1768155299001,-300.00000017,0.00013932,2]
[401362414,1768155302640,-728.13109072,0.00013931,2]
[401362415,1768155305279,-214.7707599,0.00013931,2]
[401362416,1768155309229,-172.53759866,0.00013931,2]
[401362417,1768155312240,-84.56055072,0.00013931,2]
[401362418,1768155312263,-98.39252151,0.00013932,2]
[401362419,1768155314775,-116.37823839,0.00013932,2]
[401362420,1768155314803,-133.62176161,0.00013932,2]
[401362421,1768155317302,-207.08957226,0.00013932,2]
[401362422,1768155319499,-460.28866596,0.00013932,2]
[401362423,1768155319528,-9.36631383,0.00013932,2]
[401362424,1768155322130,-179.89631907,0.00013932,2]
[401362425,1768155323678,-327.69669949,0.00013932,2]
[401362426,1768155326706,-315.00656508,0.00013932,2]
[401362427,1768155327691,-269.03410253,0.00013932,2]
[401362428,1768155327712,-28.81130609,0.00013932,2]
[401362429,1768155330218,-172.30330051,0.00013932,2]
[401362430,1768155332339,-178.27799937,0.00013932,2]
[401362431,1768155335960,-243.14365421,0.00013932,2]
[401362432,1768155337566,-461.71282103,0.00013932,2]
[401362441,1768155883002,-16.75091879,0.00013932,2]
[401362442,1768155883024,-265.0,0.00013932,2]
[401362443,1768155883047,-67.27818752,0.00014051,2]
[401362445,1768155928054,-431.31728174,0.00014051,2]
[401362446,1768155930007,-101.40453074,0.00014051,2]
[401362447,1768155930032,-56.85807351,0.00014215,2]
[401362448,1768155932789,-248.11986185,0.00013931,2]
[401362449,1768155934257,-256.4178067,0.00013931,2]
[401362450,1768155935734,-207.1827983,0.00013931,2]
[401362451,1768155938475,-389.27953315,0.00013931,2]
[401362452,1768155938501,-8.87647649,0.00014215,2]
[401362453,1768155942259,-129.26545,0.00014215,2]
[401362454,1768155942282,-68.73455,0.00014378,2]
[401362455,1768155947036,-177.91433626,0.00014378,2]
[401362458,1768155972964,-199.96669675,0.00014409,2]
[401362459,1768155975836,-252.88906652,0.00014409,2]
[401362460,1768155978967,-265.46135553,0.00014409,2]
[401362462,1768156033269,-382.6828812,0.00014409,2]
[401362463,1768156033291,-653.35111374,0.00014518,2]
[401362464,1768156033312,-166.66,0.00014628,2]
[401362465,1768156033333,-142.09258454,0.00014628,2]
[401362466,1768156039235,-635.36188938,0.00014628,2]
[401362468,1768156166072,-228.74365696,0.00014628,2]
[401362469,1768156166091,-928.1804,0.00014791,2]
[401362470,1768156166112,-1200.0,0.0001489,2]
[401362471,1768156166136,-2291.10916516,0.00014891,2]
[401362492,1768156231707,-1642.20850164,0.00014891,2]
[401362493,1768156231717,-186.42024009,0.00014899,2]
[401362494,1768156231727,-166.66,0.00014936,2]
[401362495,1768156231736,-2536.75062507,0.00014999,2]
[401362496,1768156231746,-1825.48378086,0.00015,2]
[401362497,1768156231756,-1101.0,0.00015167,2]
[401362498,1768156231767,-300.0,0.00015229,2]
[401362499,1768156231776,-3114.11,0.0001523,2]
[401362500,1768156231789,-166.66,0.00015244,2]
[401362501,1768156231799,-11964.97979095,0.0001532,2]
[401362502,1768156231809,-966.08,0.00015325,2]
[401362503,1768156231818,-279.7,0.0001536,2]
[401362504,1768156231828,-195.0,0.00015456,2]
[401362505,1768156231838,-395.37,0.00015457,2]
[401362506,1768156231847,-395.37,0.00015457,2]
[401362507,1768156231857,-395.37,0.00015457,2]
[401362508,1768156231866,-395.37,0.00015457,2]
[401362509,1768156231875,-395.37,0.00015457,2]
[401362510,1768156231886,-210.0,0.00015466,2]
[401362511,1768156231896,-1000000.0,0.00015467,2]
[401362512,1768156231905,-200.0,0.00015481,2]
[401362513,1768156231915,-166.66,0.00015552,2]
[401362514,1768156231925,-9178.92,0.00015567,2]
[401362515,1768156231935,-966.08,0.00015599,2]
[401362516,1768156231945,-500.0,0.00015671,2]
[401362517,1768156231955,-177.91433626,0.00015816,2]
[401362518,1768156231965,-1897.45636248,0.00015816,2]
[401362519,1768156231975,-383.51910631,0.0001585,2]
[401362520,1768156231985,-600.0,0.0001585,2]
[401362521,1768156231994,-602.54363752,0.0001585,2]
[401362522,1768156232004,-166.66,0.0001586,2]
[401362523,1768156232014,-966.08,0.00015873,2]
[401362524,1768156232024,-151.0,0.00015894,2]
[401362525,1768156232033,-600.57148654,0.000159,2]
[401362526,1768156232043,-600.57148651,0.000159,2]
[401362527,1768156232052,-600.57148651,0.000159,2]
[401362528,1768156232062,-181.7072947,0.000159,2]
[401362529,1768156232072,-600.57148651,0.000159,2]
[401362530,1768156232081,-600.57148651,0.000159,2]
[401362531,1768156232091,-600.57148651,0.000159,2]
[401362532,1768156232100,-907.99108783,0.000159,2]
[401362533,1768156232109,-151.0,0.00015907,2]
[401362534,1768156232119,-151.0,0.00015907,2]
[401362535,1768156232128,-151.75,0.00015907,2]
[401362536,1768156232138,-151.0,0.00015913,2]
[401362537,1768156232147,-151.0,0.00015913,2]
[401362538,1768156232158,-181.7072947,0.00015913,2]
[401362539,1768156232167,-151.0,0.00015913,2]
[401362540,1768156232177,-151.0,0.00015913,2]
[401362541,1768156232186,-151.0,0.00015918,2]
[401362542,1768156232196,-151.0,0.00015918,2]
[401362543,1768156232206,-1101.0,0.00015966,2]
[401362544,1768156232216,-802.71396262,0.0001599,2]
[401362545,1768156232226,-3114.11,0.00015991,2]
[401362546,1768156232236,-500.19471336,0.00015999,2]
[401362547,1768156232251,-500.61421208,0.00015999,2]
[401362548,1768156232260,-500.0,0.00015999,2]
[401362549,1768156232270,-231.7437834,0.00015999,2]
[401362550,1768156232280,-500.0,0.00015999,2]
[401362551,1768156232289,-250283.76152108,0.00016,2]
[401362552,1768156232298,-211210.73084052,0.00016,4]
[401362553,1768156232308,-415.77348128,0.00016091,2]
[401362554,1768156232318,-250.0,0.00016091,2]
[401362555,1768156232328,-150.99,0.00016116,2]
[401362556,1768156232338,-9999.99,0.00016116,2]
[401362557,1768156232347,-966.08,0.00016147,2]
[401362558,1768156232366,-166.66,0.00016168,2]
[401362559,1768156232378,-181.70729466,0.00016186,2]
[401362560,1768156232389,-181.70729466,0.00016197,2]
[401362561,1768156232400,-150.0,0.000162,2]
[401362562,1768156232410,-150.0,0.000162,2]
[401362563,1768156232420,-150.0,0.000162,2]
[401362564,1768156232430,-150.0,0.000162,2]
[401362565,1768156232440,-150.0,0.000162,2]
[401362566,1768156232450,-150.0,0.000162,2]
[401362567,1768156232461,-150.0,0.000162,2]
[401362568,1768156232471,-150.00000001,0.000162,2]
[401362569,1768156232482,-150.4343184,0.000162,2]
[401362570,1768156232492,-178.176763,0.000162,2]
[401362571,1768156232502,-150.37867968,0.000162,2]
[401362572,1768156232513,-247.12115075,0.000162,2]
[401362573,1768156232523,-150.0,0.000162,2]
[401362574,1768156232533,-150.0,0.000162,2]
[401362575,1768156232543,-150.0,0.000162,2]
[401362576,1768156232553,-5000.00533254,0.000162,5]
[401362577,1768156232563,-150.0,0.00016228,2]
[401362578,1768156232574,-150.0,0.00016255,2]
[401362579,1768156232584,-150.0,0.00016283,2]
[401362580,1768156232594,-150.0,0.00016311,2]
[401362581,1768156232603,-150.0,0.00016338,2]
[401362582,1768156232618,-200.0,0.0001634,2]
[401362583,1768156232628,-150.0,0.00016366,2]
[401362584,1768156232638,-195.0,0.0001638,2]
[401362585,1768156232648,-665.12488248,0.0001638,2]
[401362586,1768156232659,-208.7665,0.0001638,2]
[401362587,1768156232669,-250.0,0.0001638,2]
[401362588,1768156232679,-150.0,0.00016394,2]
[401362589,1768156232690,-162.0,0.000164,2]
[401362590,1768156232700,-966.08,0.00016421,2]
[401362591,1768156232710,-150.0,0.00016422,2]
[401362592,1768156232727,-150.0,0.00016449,2]
[401362593,1768156232737,-181.70729466,0.00016471,2]
[401362594,1768156232747,-150.0,0.00016477,2]
[401362595,1768156232757,-181.70729466,0.00016481,2]
[401362596,1768156232767,-332.0,0.00016489,2]
[401362597,1768156232777,-150.0,0.00016505,2]
[401362598,1768156232787,-150.0,0.00016532,2]
[401362599,1768156232797,-150.0,0.0001656,2]
[401362600,1768156232808,-150.0,0.00016588,2]
[401362601,1768156232818,-359.70734215,0.000166,2]
[401362602,1768156232829,-150.0,0.00016615,2]
[401362603,1768156232839,-500.0,0.00016626,6]
[401362604,1768156232849,-150.0,0.00016626,6]
[401362605,1768156232858,-150.0,0.00016626,6]
[401362606,1768156232868,-150.0,0.00016626,6]
[401362607,1768156232878,-150.0,0.00016643,2]
[401362608,1768156232888,-420.0,0.00016663,2]
[401362609,1768156232899,-150.0,0.00016671,2]
[401362610,1768156232909,-500.0,0.00016681,6]
[401362611,1768156232918,-150.0,0.00016681,6]
[401362612,1768156232929,-150.0,0.00016681,6]
[401362613,1768156232938,-150.0,0.00016681,6]
[401362614,1768156232949,-966.08,0.00016695,2]
[401362615,1768156232959,-150.0,0.00016698,2]
[401362616,1768156232969,-7300.0,0.000167,6]
[401362617,1768156232979,-340.01051178,0.000167,2]
[401362618,1768156232989,-159.6,0.00016712,2]
[401362619,1768156232999,-150.0,0.00016726,2]
[401362620,1768156233010,-500.0,0.00016736,6]
[401362621,1768156233020,-150.0,0.00016736,6]
[401362622,1768156233030,-180.9970252,0.00016736,6]
[401362623,1768156233040,-3114.11,0.00016753,2]
[401362624,1768156233050,-150.0,0.00016754,2]
[401362625,1768156233060,-181.70729466,0.00016757,2]
[401362626,1768156233071,-1101.0,0.00016764,2]
[401362627,1768156233085,-500.0,0.00016769,2]
[401362628,1768156233096,-150.0,0.00016769,2]
[401362629,1768156233106,-16744.67998272,0.00016777,2]
[401362630,1768156233118,-150.0,0.00016782,2]
[401362631,1768156233129,-150.0,0.0001679,2]
[401362632,1768156233141,-500.0,0.0001679,6]
[401362633,1768156233151,-162.50796385,0.0001679,6]
[401362634,1768156233161,-61665.62589229,0.000168,2]
[401362635,1768156233915,-20627.9323661,0.000168,2]
[401362636,1768156233944,-2231.92705476,0.000168,2]
[401362637,1768156233955,-449.3861415,0.000168,2]
[401362638,1768156233967,-487.79861401,0.000168,2]
[401362639,1768156233978,-2869.89026542,0.000168,2]
[401362671,1768156238221,-426.55,0.00014748,2]
[401362673,1768156238231,-439.97950773,0.00015466,2]
[401362675,1768156238240,-44.82916855,0.00016438,2]
[401362677,1768156238252,-190.67656546,0.00016438,2]
[401362679,1768156238262,-929.75633581,0.000168,2]
[401362682,1768156238279,-11142.39539457,0.000168,2]
[401362847,1768156239918,-1579.56364063,0.000168,2]
[401362880,1768156240079,-316.82401151,0.000168,2]
[401362883,1768156240092,-858.91170089,0.000168,2]
[401362894,1768156240135,-2254.90890695,0.000168,2]
[401362898,1768156240147,-3355.13629713,0.000168,2]
[401362901,1768156240158,-785.864716,0.000168,2]
[401362912,1768156240243,-1514.00820974,0.000168,2]
[401362914,1768156240255,-175775.17862475,0.000168,2]
[401362916,1768156240264,-14700.0,0.000168,6]
[401362919,1768156240273,-340.01051176,0.000168,2]
[401362922,1768156240283,-150.0,0.00016809,2]
[401362924,1768156240292,-500.0,0.00016824,2]
[401362927,1768156240301,-150.0,0.00016824,2]
[401362930,1768156240310,-150.0,0.00016837,2]
[401362933,1768156240319,-500.0,0.00016845,6]
[401362935,1768156240328,-150.0,0.00016865,2]
[401362938,1768156240338,-434.43767644,0.00016879,2]
[401362942,1768156240348,-200.0,0.00016879,2]
[401362944,1768156240359,-150.0,0.00016892,2]
[401362948,1768156240368,-217.62330593,0.00016899,2]
[401362951,1768156240379,-500.0,0.000169,6]
[401362954,1768156240388,-22100.0,0.000169,6]
[401362957,1768156240398,-340.01051176,0.000169,2]
[401362960,1768156240408,-5687.5731,0.000169,2]
[401362962,1768156240417,-150.0,0.0001692,2]
[401362965,1768156240427,-168.0,0.00016926,2]
[401362968,1768156240435,-248.0,0.00016926,2]
[401362971,1768156240445,-821.41,0.00016941,2]
[401362974,1768156240455,-150.0,0.00016948,2]
[401362977,1768156240465,-500.0,0.00016955,6]
[401362980,1768156240476,-966.08,0.00016969,2]
[401362984,1768156240486,-150.0,0.00016975,2]
[401362987,1768156240495,-877.6418009,0.00016989,2]
[401362990,1768156240505,-166.9455236,0.00016999,2]
[401362993,1768156240515,-500.0,0.00016999,2]
[401362996,1768156240524,-500.0,0.00016999,2]
[401362998,1768156240534,-415.1732756,0.00016999,2]
[401363002,1768156240543,-560.44777622,0.00016999,2]
[401363004,1768156240553,-150.0,0.00016999,2]
[401363008,1768156240562,-250.0,0.00017,2]
[401363011,1768156240572,-160.0,0.00017,2]
[401363013,1768156240582,-150.0,0.00017003,2]
[401363017,1768156240592,-500.0,0.0001701,6]
[401363020,1768156240602,-150.0,0.00017031,2]
[401363023,1768156240614,-998.0,0.00017052,2]
[401363026,1768156240624,-578.20924308,0.00017052,2]
[401363029,1768156240634,-1000.0,0.00017052,2]
[401363032,1768156240643,-1000.0,0.00017052,2]
[401363035,1768156240653,-1000.0,0.00017052,2]
[401363037,1768156240662,-1000.0,0.00017052,2]
[401363040,1768156240671,-1000.0,0.00017052,2]
[401363042,1768156240682,-1000.0,0.00017052,2]
[401363045,1768156240691,-1000.0,0.00017052,2]
[401363047,1768156240701,-1000.0,0.00017052,2]
[401363048,1768156240711,-1000.0,0.00017052,2]
[401363051,1768156240720,-1000.0,0.00017052,2]
[401363052,1768156240730,-1000.0,0.00017052,2]
[401363054,1768156240739,-1000.0,0.00017052,2]
[401363056,1768156240749,-553.64373807,0.00017052,2]
[401363059,1768156240758,-620.0,0.00017052,2]
[401363061,1768156240768,-322.6107,0.00017052,2]
[401363063,1768156240777,-150.0,0.00017058,2]
[401363065,1768156240787,-500.0,0.00017064,6]
[401363067,1768156240796,-500.73774285,0.00017073,2]
[401363068,1768156240806,-413.2521776,0.00017073,2]
[401363071,1768156240815,-500.0,0.00017073,2]
[401363072,1768156240824,-500.45639995,0.00017073,2]
[401363074,1768156240834,-500.0,0.00017073,2]
[401363077,1768156240847,-500.0,0.00017073,2]
[401363078,1768156240856,-500.66892907,0.00017073,2]
[401363081,1768156240865,-500.0,0.00017073,2]
[401363082,1768156240875,-500.0,0.00017073,2]
[401363084,1768156240885,-500.0,0.00017073,2]
[401363086,1768156240894,-418.63063862,0.00017073,2]
[401363088,1768156240903,-500.0,0.00017073,2]
[401363090,1768156240913,-500.0,0.00017073,2]
[401363092,1768156240923,-500.0,0.00017073,2]
[401363095,1768156240932,-500.0,0.00017073,2]
[401363096,1768156240942,-150.0,0.00017086,2]
[401363097,1768156240952,-150.0,0.000171,2]
[401363098,1768156240961,-150.0,0.000171,2]
[401363099,1768156240970,-150.0,0.000171,2]
[401363100,1768156240980,-150.0,0.000171,2]
[401363101,1768156240990,-150.0,0.000171,2]
[401363102,1768156240999,-150.0,0.00017114,2]
[401363103,1768156241009,-500.0,0.00017119,6]
[401363104,1768156241019,-1600.0,0.00017129,2]
[401363106,1768156241041,-150.0,0.00017142,2]
[401363108,1768156241051,-150.0,0.00017169,2]
[401363110,1768156241064,-500.0,0.00017174,6]
[401363112,1768156241078,-200.0,0.00017174,2]
[401363114,1768156241088,-150.0,0.00017197,2]
[401363116,1768156241098,-150.0,0.00017225,2]
[401363118,1768156241106,-500.0,0.00017229,6]
[401363120,1768156241116,-966.08,0.00017243,2]
[401363122,1768156241125,-150.0,0.00017252,2]
[401363124,1768156241133,-150.0,0.0001728,2]
[401363126,1768156241143,-500.0,0.00017284,6]
[401363128,1768156241152,-29500.0,0.000173,6]
[401363130,1768156241161,-150.0,0.00017308,2]
[401363132,1768156241171,-150.0,0.00017335,2]
[401363134,1768156241180,-500.0,0.00017338,6]
[401363136,1768156241191,-2479.18109645,0.00017344,2]
[401363138,1768156241201,-150.0,0.00017363,2]
[401363140,1768156241211,-28016.0,0.0001737,2]